[Event "Late-Titled-Tuesday-Blitz-March-12-2024"]
[Site "Chess.com"]
[Date "2024.03.12"]
[Round "4"]
[White "Kopytkin"]
[Black "Willhaven3"]
[Result "1-0"]
[WhiteElo "2445"]
[BlackElo "2626"]
[TimeControl "180+1"]
[EndTime "14:36:17 PDT"]
[Termination "Kopytkin won by resignation"]

1. d4 {[%clk 0:03:00.9]} 1... f5 {[%clk 0:02:57.6]} 2. Bg5 {[%clk 0:02:59.4]}
2... h6 {[%clk 0:02:57.5]} 3. Bf4 {[%clk 0:02:57.7]} 3... Nf6 {[%clk 0:02:45.3]}
4. Nc3 {[%clk 0:02:53.5]} 4... d6 {[%clk 0:02:40.7]} 5. h4 {[%clk 0:02:49.7]}
5... g6 {[%clk 0:02:34.7]} 6. e4 {[%clk 0:02:41.1]} 6... fxe4 {[%clk 0:02:17.6]}
7. f3 {[%clk 0:02:40.9]} 7... Nc6 {[%clk 0:02:03.8]} 8. fxe4 {[%clk 0:02:34.1]}
8... Bg4 {[%clk 0:01:57.5]} 9. Nf3 {[%clk 0:02:33.5]} 9... e5 {[%clk 0:01:53.1]}
10. dxe5 {[%clk 0:02:20.2]} 10... Bxf3 {[%clk 0:01:50.9]} 11. gxf3 {[%clk
0:02:12.3]} 11... dxe5 {[%clk 0:01:48.8]} 12. Be3 {[%clk 0:01:59.2]} 12... Qxd1+
{[%clk 0:01:44.4]} 13. Rxd1 {[%clk 0:01:58.6]} 13... Bb4 {[%clk 0:01:44.7]} 14.
Bc4 {[%clk 0:01:54.8]} 14... Bxc3+ {[%clk 0:01:42.9]} 15. bxc3 {[%clk
0:01:54.5]} 15... Rd8 {[%clk 0:01:41.3]} 16. Rxd8+ {[%clk 0:01:49.6]} 16... Kxd8
{[%clk 0:01:36.1]} 17. Rg1 {[%clk 0:01:50.5]} 17... Ne7 {[%clk 0:01:36.3]} 18.
Bf7 {[%clk 0:01:36.3]} 18... h5 {[%clk 0:00:53.7]} 19. Bxg6 {[%clk 0:01:23.6]}
19... Rg8 {[%clk 0:00:22.4]} 20. Bf7 {[%clk 0:01:20.9]} 20... Rxg1+ {[%clk
0:00:23.3]} 21. Bxg1 {[%clk 0:01:20.8]} 21... Kd7 {[%clk 0:00:20]} 22. Be3
{[%clk 0:01:13.9]} 22... Kd6 {[%clk 0:00:19.4]} 23. Bg5 {[%clk 0:01:11.6]} 23...
Neg8 {[%clk 0:00:19.5]} 24. Ke2 {[%clk 0:01:06.5]} 24... Ke7 {[%clk 0:00:19.6]}
25. Bxg8 {[%clk 0:01:06]} 1-0

[Event "Late-Titled-Tuesday-Blitz-March-12-2024"]
[Site "Chess.com"]
[Date "2024.03.12"]
[Round "4"]
[White "marcodobrikov"]
[Black "1g60-1"]
[Result "1-0"]
[WhiteElo "2606"]
[BlackElo "2329"]
[TimeControl "180+1"]
[EndTime "14:36:23 PDT"]
[Termination "marcodobrikov won on time"]

1. Nc3 {[%clk 0:03:00.6]} 1... e6 {[%clk 0:02:59.7]} 2. e4 {[%clk 0:03:00.8]}
2... d5 {[%clk 0:03:00.1]} 3. d4 {[%clk 0:02:58.9]} 3... Bb4 {[%clk 0:02:58.5]}
4. exd5 {[%clk 0:02:57.1]} 4... exd5 {[%clk 0:02:57.6]} 5. Bd3 {[%clk
0:02:56.2]} 5... Nc6 {[%clk 0:02:57]} 6. Ne2 {[%clk 0:02:56.7]} 6... Bg4 {[%clk
0:02:55.6]} 7. a3 {[%clk 0:02:56.7]} 7... Ba5 {[%clk 0:02:50.2]} 8. h3 {[%clk
0:02:52.9]} 8... Bxe2 {[%clk 0:02:45.5]} 9. Qxe2+ {[%clk 0:02:52.7]} 9... Nge7
{[%clk 0:02:46.3]} 10. Be3 {[%clk 0:02:52.7]} 10... O-O {[%clk 0:02:44.8]} 11.
Qd2 {[%clk 0:02:51.8]} 11... Qd7 {[%clk 0:02:35]} 12. g4 {[%clk 0:02:51.4]}
12... Rfe8 {[%clk 0:02:32.6]} 13. O-O-O {[%clk 0:02:51.6]} 13... a6 {[%clk
0:02:31.9]} 14. b4 {[%clk 0:02:44.4]} 14... Nxb4 {[%clk 0:02:12.5]} 15. axb4
{[%clk 0:02:45.3]} 15... Bxb4 {[%clk 0:02:12.7]} 16. Kb2 {[%clk 0:02:45.4]}
16... Qc6 {[%clk 0:01:58.9]} 17. Ra1 {[%clk 0:02:43.3]} 17... b5 {[%clk
0:01:54.7]} 18. Kb3 {[%clk 0:02:29.3]} 18... Qd6 {[%clk 0:01:27.2]} 19. Bf4
{[%clk 0:02:27.9]} 19... Bxc3 {[%clk 0:01:25.1]} 20. Kxc3 {[%clk 0:02:27.4]}
20... Qb6 {[%clk 0:01:14.2]} 21. Be3 {[%clk 0:02:23]} 21... Nc6 {[%clk
0:01:11.8]} 22. Kb2 {[%clk 0:02:22.3]} 22... a5 {[%clk 0:01:09]} 23. h4 {[%clk
0:02:16.7]} 23... a4 {[%clk 0:01:04.6]} 24. g5 {[%clk 0:02:13.1]} 24... Na5
{[%clk 0:01:03]} 25. h5 {[%clk 0:02:12.4]} 25... Rab8 {[%clk 0:00:58.2]} 26. Qb4
{[%clk 0:02:09.2]} 26... Qa6 {[%clk 0:00:44.2]} 27. Kc1 {[%clk 0:02:09]} 27...
Nc4 {[%clk 0:00:42.6]} 28. Bxc4 {[%clk 0:02:08.6]} 28... dxc4 {[%clk 0:00:37.4]}
29. Ra3 {[%clk 0:02:04.7]} 29... Qe6 {[%clk 0:00:33.2]} 30. h6 {[%clk
0:01:57.9]} 30... g6 {[%clk 0:00:31]} 31. Rh4 {[%clk 0:01:55.6]} 31... Qf5
{[%clk 0:00:11.2]} 32. Kb2 {[%clk 0:01:45.9]} 32... Rbc8 {[%clk 0:00:06.5]} 33.
Rf4 {[%clk 0:01:44.6]} 33... Qh3 {[%clk 0:00:04.2]} 34. Rf6 {[%clk 0:01:42.4]}
34... c5 {[%clk 0:00:04.2]} 35. dxc5 {[%clk 0:01:41.5]} 35... Qf1 {[%clk
0:00:01]} 36. Qc3 {[%clk 0:01:41.3]} 1-0

[Event "Late-Titled-Tuesday-Blitz-March-12-2024"]
[Site "Chess.com"]
[Date "2024.03.12"]
[Round "4"]
[White "lamomiajunior"]
[Black "EsmeraldasAnderson03"]
[Result "1-0"]
[WhiteElo "2784"]
[BlackElo "2572"]
[TimeControl "180+1"]
[EndTime "14:36:32 PDT"]
[Termination "lamomiajunior won on time"]

1. d4 {[%clk 0:03:00.2]} 1... d5 {[%clk 0:02:59.5]} 2. c4 {[%clk 0:03:00.5]}
2... dxc4 {[%clk 0:03:00.4]} 3. e4 {[%clk 0:02:59.3]} 3... Nf6 {[%clk
0:03:01.3]} 4. e5 {[%clk 0:02:58.3]} 4... Nd5 {[%clk 0:03:02]} 5. Bxc4 {[%clk
0:02:58.7]} 5... Nb6 {[%clk 0:03:02.7]} 6. Bb3 {[%clk 0:02:58]} 6... Nc6 {[%clk
0:03:03.4]} 7. Be3 {[%clk 0:02:54.9]} 7... Bf5 {[%clk 0:03:02.9]} 8. Nc3 {[%clk
0:02:50.7]} 8... e6 {[%clk 0:03:03.3]} 9. a3 {[%clk 0:02:50.1]} 9... Qd7 {[%clk
0:02:58.9]} 10. Nge2 {[%clk 0:02:48.3]} 10... Be7 {[%clk 0:02:58.7]} 11. O-O
{[%clk 0:02:47.4]} 11... O-O {[%clk 0:02:50.6]} 12. Rc1 {[%clk 0:02:47.5]} 12...
Na5 {[%clk 0:02:50.2]} 13. Bc2 {[%clk 0:02:35.6]} 13... Bg6 {[%clk 0:02:42]} 14.
Bxg6 {[%clk 0:02:34.7]} 14... hxg6 {[%clk 0:02:42.9]} 15. Ne4 {[%clk 0:02:28.6]}
15... Nac4 {[%clk 0:02:33.7]} 16. Qc2 {[%clk 0:02:27.9]} 16... Rac8 {[%clk
0:02:12.9]} 17. N2c3 {[%clk 0:02:25.8]} 17... c5 {[%clk 0:01:57.8]} 18. Rfd1
{[%clk 0:02:20.1]} 18... cxd4 {[%clk 0:01:55.3]} 19. Bxd4 {[%clk 0:02:21]} 19...
Nd5 {[%clk 0:01:19.1]} 20. Qe2 {[%clk 0:02:18.5]} 20... Rfd8 {[%clk 0:00:51]}
21. g3 {[%clk 0:02:13.7]} 21... Ncb6 {[%clk 0:00:35.4]} 22. h4 {[%clk
0:02:12.7]} 22... Nxc3 {[%clk 0:00:28.6]} 23. Nxc3 {[%clk 0:02:04.6]} 23... Nd5
{[%clk 0:00:29.1]} 24. h5 {[%clk 0:01:56.7]} 24... gxh5 {[%clk 0:00:22.5]} 25.
Qxh5 {[%clk 0:01:54.8]} 25... g6 {[%clk 0:00:21.3]} 26. Qh3 {[%clk 0:01:51.1]}
26... Bg5 {[%clk 0:00:20.5]} 27. f4 {[%clk 0:01:49]} 27... Bxf4 {[%clk
0:00:09.2]} 28. gxf4 {[%clk 0:01:48.1]} 28... Nxf4 {[%clk 0:00:10.1]} 29. Qf3
{[%clk 0:01:46.6]} 29... Nh5 {[%clk 0:00:06.4]} 30. Kg2 {[%clk 0:01:41.8]} 30...
Qe7 {[%clk 0:00:05.9]} 31. Be3 {[%clk 0:01:31.3]} 31... Rxd1 {[%clk 0:00:05.2]}
32. Rxd1 {[%clk 0:01:32.2]} 32... Qc7 {[%clk 0:00:03.2]} 33. Rd6 {[%clk
0:01:27.5]} 33... Qc4 {[%clk 0:00:02.9]} 34. Rd7 {[%clk 0:01:23.2]} 34... Rf8
{[%clk 0:00:02.5]} 35. Bh6 {[%clk 0:01:21.1]} 1-0

[Event "Late-Titled-Tuesday-Blitz-March-12-2024"]
[Site "Chess.com"]
[Date "2024.03.12"]
[Round "4"]
[White "Stanbad1"]
[Black "Supergiuly"]
[Result "0-1"]
[WhiteElo "2520"]
[BlackElo "2369"]
[TimeControl "180+1"]
[EndTime "14:36:34 PDT"]
[Termination "Supergiuly won by resignation"]

1. d4 {[%clk 0:02:59.8]} 1... g6 {[%clk 0:02:57]} 2. Nc3 {[%clk 0:02:58.4]} 2...
Bg7 {[%clk 0:02:57.9]} 3. e4 {[%clk 0:02:58.2]} 3... d6 {[%clk 0:02:58]} 4. Be3
{[%clk 0:02:58.7]} 4... Nd7 {[%clk 0:02:58.3]} 5. f3 {[%clk 0:02:59.1]} 5...
Ngf6 {[%clk 0:02:58.6]} 6. Qd2 {[%clk 0:02:59.1]} 6... O-O {[%clk 0:02:59.1]} 7.
O-O-O {[%clk 0:02:58]} 7... c5 {[%clk 0:02:59.3]} 8. dxc5 {[%clk 0:02:58.3]}
8... dxc5 {[%clk 0:02:54.6]} 9. Bxc5 {[%clk 0:02:57.8]} 9... b6 {[%clk 0:02:53]}
10. Be3 {[%clk 0:02:57.6]} 10... Bb7 {[%clk 0:02:52.5]} 11. h4 {[%clk
0:02:57.7]} 11... h5 {[%clk 0:02:49.7]} 12. Nh3 {[%clk 0:02:54.9]} 12... Rc8
{[%clk 0:02:48.6]} 13. Ng5 {[%clk 0:02:54.6]} 13... Qc7 {[%clk 0:02:21.5]} 14.
Kb1 {[%clk 0:02:50.9]} 14... Nc5 {[%clk 0:02:21.2]} 15. Be2 {[%clk 0:02:45.3]}
15... Rfd8 {[%clk 0:02:18.2]} 16. Qc1 {[%clk 0:02:44.7]} 16... Qg3 {[%clk
0:02:08.4]} 17. Bf4 {[%clk 0:02:22.6]} 17... Rxd1 {[%clk 0:01:50.1]} 18. Nxd1
{[%clk 0:01:40.2]} 18... Qxg2 {[%clk 0:01:47.2]} 19. Rh2 {[%clk 0:01:39]} 19...
Qg1 {[%clk 0:01:42.8]} 20. Nh3 {[%clk 0:01:32.3]} 20... Qe1 {[%clk 0:01:36]} 21.
c3 {[%clk 0:01:12.1]} 21... Rd8 {[%clk 0:01:13.4]} 22. Kc2 {[%clk 0:00:24.5]}
22... Nfxe4 {[%clk 0:01:00.5]} 23. b4 {[%clk 0:00:22.5]} 23... Rxd1 {[%clk
0:00:40.5]} 24. Qxd1 {[%clk 0:00:20.7]} 24... Qxc3+ {[%clk 0:00:39.9]} 0-1

[Event "Late-Titled-Tuesday-Blitz-March-12-2024"]
[Site "Chess.com"]
[Date "2024.03.12"]
[Round "4"]
[White "santosalberto1987"]
[Black "Heydarli77"]
[Result "0-1"]
[WhiteElo "2546"]
[BlackElo "2401"]
[TimeControl "180+1"]
[EndTime "14:36:35 PDT"]
[Termination "Heydarli77 won by checkmate"]

1. e4 {[%clk 0:03:00.9]} 1... c5 {[%clk 0:02:57.2]} 2. Nf3 {[%clk 0:03:00.9]}
2... e6 {[%clk 0:02:56.5]} 3. g3 {[%clk 0:03:00.7]} 3... a6 {[%clk 0:02:54.3]}
4. Bg2 {[%clk 0:03:00.6]} 4... Qc7 {[%clk 0:02:49.9]} 5. O-O {[%clk 0:02:59.9]}
5... b5 {[%clk 0:02:49.4]} 6. c3 {[%clk 0:02:59.6]} 6... Bb7 {[%clk 0:02:49.1]}
7. Re1 {[%clk 0:02:59.9]} 7... d6 {[%clk 0:02:48.9]} 8. d4 {[%clk 0:02:59.6]}
8... Nf6 {[%clk 0:02:45.5]} 9. Nbd2 {[%clk 0:02:58.1]} 9... Be7 {[%clk
0:02:44.9]} 10. Qe2 {[%clk 0:02:56.9]} 10... O-O {[%clk 0:02:37.9]} 11. e5
{[%clk 0:02:55.5]} 11... Nd5 {[%clk 0:02:33.9]} 12. Ne4 {[%clk 0:02:55.5]} 12...
Nd7 {[%clk 0:02:27.8]} 13. exd6 {[%clk 0:02:47.9]} 13... Bxd6 {[%clk 0:02:26.9]}
14. Nxd6 {[%clk 0:02:48.5]} 14... Qxd6 {[%clk 0:02:26.4]} 15. dxc5 {[%clk
0:02:41.6]} 15... Nxc5 {[%clk 0:02:25]} 16. Ne5 {[%clk 0:02:40]} 16... Rfd8
{[%clk 0:02:23]} 17. Bd2 {[%clk 0:02:28.1]} 17... Nf6 {[%clk 0:02:20.2]} 18.
Bxb7 {[%clk 0:02:24.3]} 18... Nxb7 {[%clk 0:02:19.9]} 19. Rad1 {[%clk
0:02:23.1]} 19... Qc7 {[%clk 0:02:18.9]} 20. Bg5 {[%clk 0:02:00.7]} 20... Rxd1
{[%clk 0:02:16.3]} 21. Rxd1 {[%clk 0:01:59.3]} 21... Nd5 {[%clk 0:02:14.6]} 22.
Bc1 {[%clk 0:01:43.1]} 22... Nd6 {[%clk 0:02:12.3]} 23. a4 {[%clk 0:01:40]}
23... Rb8 {[%clk 0:02:03.9]} 24. axb5 {[%clk 0:01:39.2]} 24... axb5 {[%clk
0:02:03.8]} 25. h4 {[%clk 0:01:35.3]} 25... h6 {[%clk 0:02:01.4]} 26. Nd3 {[%clk
0:01:30.2]} 26... Nc4 {[%clk 0:01:57]} 27. Nf4 {[%clk 0:01:29.9]} 27... Rd8
{[%clk 0:01:54]} 28. Nxd5 {[%clk 0:01:29.3]} 28... Rxd5 {[%clk 0:01:51.3]} 29.
Rxd5 {[%clk 0:01:28.9]} 29... exd5 {[%clk 0:01:51.4]} 30. Qe8+ {[%clk
0:01:27.1]} 30... Kh7 {[%clk 0:01:50.7]} 31. Qxb5 {[%clk 0:01:25.9]} 31... Qe5
{[%clk 0:01:47.1]} 32. Bf4 {[%clk 0:01:19.5]} 32... Qe1+ {[%clk 0:01:46.2]} 33.
Kg2 {[%clk 0:01:19.9]} 33... Qe4+ {[%clk 0:01:45.4]} 34. Kh2 {[%clk 0:01:19.7]}
34... g5 {[%clk 0:01:44.1]} 35. hxg5 {[%clk 0:01:18.8]} 35... hxg5 {[%clk
0:01:44.3]} 36. Bxg5 {[%clk 0:01:12.4]} 36... Ne5 {[%clk 0:01:44.4]} 37. Bf4
{[%clk 0:00:29.4]} 37... Ng4+ {[%clk 0:01:30.6]} 38. Kh3 {[%clk 0:00:28.9]}
38... Nxf2+ {[%clk 0:01:26.7]} 39. Kh4 {[%clk 0:00:25.6]} 39... Qh1+ {[%clk
0:01:24.2]} 40. Kg5 {[%clk 0:00:25.7]} 40... Qh6+ {[%clk 0:01:23.2]} 41. Kf5
{[%clk 0:00:25.7]} 41... Qe6+ {[%clk 0:01:22.9]} 42. Kg5 {[%clk 0:00:25.5]}
42... Qg6+ {[%clk 0:01:22.8]} 43. Kh4 {[%clk 0:00:25.2]} 43... Qg4# {[%clk
0:01:22.7]} 0-1

[Event "Late-Titled-Tuesday-Blitz-March-12-2024"]
[Site "Chess.com"]
[Date "2024.03.12"]
[Round "4"]
[White "Boninknights"]
[Black "arenal72"]
[Result "0-1"]
[WhiteElo "2437"]
[BlackElo "2648"]
[TimeControl "180+1"]
[EndTime "14:36:37 PDT"]
[Termination "arenal72 won by resignation"]

1. d4 {[%clk 0:02:58.2]} 1... d6 {[%clk 0:02:58.7]} 2. Bg5 {[%clk 0:02:55.4]}
2... h6 {[%clk 0:02:57.1]} 3. Bh4 {[%clk 0:02:54.3]} 3... g5 {[%clk 0:02:54.6]}
4. Bg3 {[%clk 0:02:53.9]} 4... f5 {[%clk 0:02:55.3]} 5. e3 {[%clk 0:02:51.7]}
5... Nf6 {[%clk 0:02:54.4]} 6. Nd2 {[%clk 0:02:49.9]} 6... Bg7 {[%clk
0:02:54.4]} 7. Bc4 {[%clk 0:02:47.1]} 7... d5 {[%clk 0:02:40.1]} 8. Bd3 {[%clk
0:02:43.4]} 8... O-O {[%clk 0:02:36.7]} 9. h4 {[%clk 0:02:38.7]} 9... g4 {[%clk
0:02:33.1]} 10. h5 {[%clk 0:02:35.9]} 10... Ne4 {[%clk 0:02:32.1]} 11. Nxe4
{[%clk 0:02:29.2]} 11... dxe4 {[%clk 0:02:15.4]} 12. Bc4+ {[%clk 0:02:27.6]}
12... Kh7 {[%clk 0:02:15.3]} 13. Ne2 {[%clk 0:02:23.2]} 13... c5 {[%clk
0:02:15]} 14. c3 {[%clk 0:02:21.8]} 14... Nc6 {[%clk 0:02:06.5]} 15. Nf4 {[%clk
0:02:14.4]} 15... Na5 {[%clk 0:02:00.4]} 16. Be2 {[%clk 0:02:08.2]} 16... e5
{[%clk 0:01:52.7]} 17. Ng6 {[%clk 0:02:02.5]} 17... exd4 {[%clk 0:01:46.6]} 18.
Nxf8+ {[%clk 0:02:00.4]} 18... Qxf8 {[%clk 0:01:39.9]} 19. cxd4 {[%clk
0:01:55.4]} 19... cxd4 {[%clk 0:01:31.1]} 20. Qd2 {[%clk 0:01:52.9]} 20... Nc6
{[%clk 0:01:26]} 21. exd4 {[%clk 0:01:48.9]} 21... Nxd4 {[%clk 0:01:18.5]} 22.
Rc1 {[%clk 0:01:46]} 22... Be6 {[%clk 0:01:13.5]} 23. Rc7 {[%clk 0:01:39.7]}
23... Rd8 {[%clk 0:01:12.1]} 24. Be5 {[%clk 0:01:33.6]} 24... Bf7 {[%clk
0:01:09.9]} 25. Qf4 {[%clk 0:01:19.7]} 25... Qb4+ {[%clk 0:00:50.4]} 26. Kf1
{[%clk 0:01:18.2]} 26... Qxb2 {[%clk 0:00:29.9]} 27. Qxf5+ {[%clk 0:01:06.4]}
27... Nxf5 {[%clk 0:00:25.3]} 28. Bxb2 {[%clk 0:01:05.8]} 28... Rd2 {[%clk
0:00:17.8]} 29. Rxf7 {[%clk 0:01:06.7]} 29... Rxb2 {[%clk 0:00:16.9]} 30. Rxf5
{[%clk 0:01:06.2]} 30... Rb1+ {[%clk 0:00:16.5]} 31. Bd1 {[%clk 0:01:04.9]}
31... Rxd1+ {[%clk 0:00:17.2]} 32. Ke2 {[%clk 0:01:04.3]} 32... Rxh1 {[%clk
0:00:18.1]} 33. Rf7 {[%clk 0:01:03.3]} 33... Rb1 {[%clk 0:00:18.4]} 34. Rc7
{[%clk 0:01:02.6]} 34... Rb2+ {[%clk 0:00:18.4]} 0-1

[Event "Late-Titled-Tuesday-Blitz-March-12-2024"]
[Site "Chess.com"]
[Date "2024.03.12"]
[Round "4"]
[White "jocmil"]
[Black "Vadim_Galchenko"]
[Result "0-1"]
[WhiteElo "2775"]
[BlackElo "2592"]
[TimeControl "180+1"]
[EndTime "14:36:47 PDT"]
[Termination "Vadim_Galchenko won by resignation"]

1. b3 {[%clk 0:03:00.9]} 1... d5 {[%clk 0:02:58.4]} 2. Bb2 {[%clk 0:03:01.1]}
2... Bg4 {[%clk 0:02:59.1]} 3. f3 {[%clk 0:02:59.3]} 3... Bh5 {[%clk 0:02:59.2]}
4. Nh3 {[%clk 0:02:59.2]} 4... Nc6 {[%clk 0:02:56.6]} 5. Nf4 {[%clk 0:02:51]}
5... Bg6 {[%clk 0:02:52.3]} 6. h4 {[%clk 0:02:45.5]} 6... e5 {[%clk 0:02:51.2]}
7. Nxg6 {[%clk 0:02:41.6]} 7... hxg6 {[%clk 0:02:52.1]} 8. g3 {[%clk 0:02:41.4]}
8... Nf6 {[%clk 0:02:51]} 9. e3 {[%clk 0:02:34.2]} 9... g5 {[%clk 0:02:47.8]}
10. Bb5 {[%clk 0:02:20]} 10... Bd6 {[%clk 0:02:40.4]} 11. Qe2 {[%clk 0:02:10.3]}
11... gxh4 {[%clk 0:02:30]} 12. gxh4 {[%clk 0:02:04.6]} 12... Qe7 {[%clk
0:02:27.1]} 13. Nc3 {[%clk 0:01:58.9]} 13... a6 {[%clk 0:02:15.6]} 14. Ba4
{[%clk 0:01:49.5]} 14... e4 {[%clk 0:01:28.1]} 15. O-O-O {[%clk 0:01:41.6]}
15... exf3 {[%clk 0:01:26.7]} 16. Bxc6+ {[%clk 0:01:40.9]} 16... bxc6 {[%clk
0:01:26.6]} 17. Qxf3 {[%clk 0:01:41]} 17... O-O-O {[%clk 0:01:26.7]} 18. Rdg1
{[%clk 0:01:37.6]} 18... g6 {[%clk 0:01:18.3]} 19. Ne2 {[%clk 0:01:12.3]} 19...
Be5 {[%clk 0:01:14]} 20. Nd4 {[%clk 0:01:11.6]} 20... c5 {[%clk 0:01:08.3]} 21.
Nc6 {[%clk 0:01:06.9]} 21... Bxb2+ {[%clk 0:01:07.6]} 22. Kxb2 {[%clk
0:01:07.4]} 22... Qd6 {[%clk 0:01:07.5]} 23. Nxd8 {[%clk 0:01:07.2]} 23... Rxd8
{[%clk 0:01:05.8]} 24. d3 {[%clk 0:01:01.2]} 24... c4 {[%clk 0:01:00.2]} 25.
dxc4 {[%clk 0:00:54.2]} 25... Ne4 {[%clk 0:00:56.9]} 26. Qf4 {[%clk 0:00:41.6]}
26... Qb4 {[%clk 0:00:50.4]} 27. Qe5 {[%clk 0:00:23.3]} 27... dxc4 {[%clk
0:00:45.5]} 28. Qxe4 {[%clk 0:00:15.1]} 28... c3+ {[%clk 0:00:45.6]} 29. Kb1
{[%clk 0:00:13.9]} 29... Qxe4 {[%clk 0:00:46.5]} 0-1

[Event "Late-Titled-Tuesday-Blitz-March-12-2024"]
[Site "Chess.com"]
[Date "2024.03.12"]
[Round "4"]
[White "jk13"]
[Black "Machidon"]
[Result "1-0"]
[WhiteElo "2700"]
[BlackElo "2494"]
[TimeControl "180+1"]
[EndTime "14:36:50 PDT"]
[Termination "jk13 won by resignation"]

1. e4 {[%clk 0:03:00.9]} 1... c6 {[%clk 0:02:57.5]} 2. Nc3 {[%clk 0:03:00.8]}
2... d5 {[%clk 0:02:57.7]} 3. Nf3 {[%clk 0:03:01.7]} 3... Bg4 {[%clk 0:02:57.5]}
4. h3 {[%clk 0:03:02]} 4... Bxf3 {[%clk 0:02:58.1]} 5. Qxf3 {[%clk 0:03:02.9]}
5... e6 {[%clk 0:02:58.7]} 6. a3 {[%clk 0:03:03.4]} 6... Bc5 {[%clk 0:02:50.2]}
7. d3 {[%clk 0:03:03.9]} 7... Ne7 {[%clk 0:02:49.4]} 8. g3 {[%clk 0:03:04.5]}
8... Nd7 {[%clk 0:02:48.1]} 9. Bg2 {[%clk 0:03:05.1]} 9... a5 {[%clk 0:02:42.2]}
10. O-O {[%clk 0:03:05.5]} 10... a4 {[%clk 0:02:39.7]} 11. Qe2 {[%clk
0:03:04.3]} 11... O-O {[%clk 0:02:35.7]} 12. Kh1 {[%clk 0:03:04.9]} 12... b5
{[%clk 0:01:58.4]} 13. f4 {[%clk 0:03:04.9]} 13... d4 {[%clk 0:01:57.8]} 14. Nb1
{[%clk 0:03:01.7]} 14... b4 {[%clk 0:01:45.1]} 15. axb4 {[%clk 0:02:57.3]} 15...
Bxb4 {[%clk 0:01:46]} 16. Nd2 {[%clk 0:02:57.7]} 16... Qc7 {[%clk 0:01:35.8]}
17. Nc4 {[%clk 0:02:54.3]} 17... Nb6 {[%clk 0:01:32]} 18. Ne5 {[%clk 0:02:52.9]}
18... Ra7 {[%clk 0:01:26.4]} 19. h4 {[%clk 0:02:45.8]} 19... Rfa8 {[%clk
0:01:20.4]} 20. h5 {[%clk 0:02:44.9]} 20... a3 {[%clk 0:01:14.4]} 21. bxa3
{[%clk 0:02:40.9]} 21... Bxa3 {[%clk 0:01:15.3]} 22. Bd2 {[%clk 0:02:37.3]}
22... Bb2 {[%clk 0:01:10.7]} 23. Rxa7 {[%clk 0:02:30.7]} 23... Rxa7 {[%clk
0:01:11.6]} 24. h6 {[%clk 0:02:28.1]} 24... g6 {[%clk 0:01:11.9]} 25. Ng4 {[%clk
0:02:26.3]} 25... Nd7 {[%clk 0:01:10.1]} 26. Kh2 {[%clk 0:02:12.7]} 26... Ra1
{[%clk 0:01:04.3]} 27. Rf2 {[%clk 0:01:51.1]} 27... Bc1 {[%clk 0:01:01]} 28. Rf1
{[%clk 0:01:38.5]} 28... Bb2 {[%clk 0:01:00.5]} 29. Rxa1 {[%clk 0:01:38.5]}
29... Bxa1 {[%clk 0:01:00.6]} 30. Qe1 {[%clk 0:01:37.3]} 30... Qa7 {[%clk
0:00:49.7]} 31. Qb1 {[%clk 0:01:22.9]} 31... f6 {[%clk 0:00:40.5]} 32. Qb4
{[%clk 0:01:17]} 32... Kf7 {[%clk 0:00:39.6]} 33. Qd6 {[%clk 0:00:55.1]} 33...
Qc5 {[%clk 0:00:37.8]} 34. Qxd7 {[%clk 0:00:53.2]} 34... Qxc2 {[%clk 0:00:36.4]}
35. Bb4 {[%clk 0:00:43]} 35... c5 {[%clk 0:00:35.4]} 36. Qc7 {[%clk 0:00:39.4]}
1-0

[Event "Late-Titled-Tuesday-Blitz-March-12-2024"]
[Site "Chess.com"]
[Date "2024.03.12"]
[Round "4"]
[White "BlueWizzard"]
[Black "Caisachess"]
[Result "1-0"]
[WhiteElo "2879"]
[BlackElo "2374"]
[TimeControl "180+1"]
[EndTime "14:36:54 PDT"]
[Termination "BlueWizzard won by checkmate"]

1. d4 {[%clk 0:03:00.9]} 1... Nf6 {[%clk 0:02:58.8]} 2. Nc3 {[%clk 0:03:01.5]}
2... d6 {[%clk 0:02:56.6]} 3. h3 {[%clk 0:03:00.9]} 3... g6 {[%clk 0:02:56.6]}
4. g4 {[%clk 0:03:01.1]} 4... Bg7 {[%clk 0:02:56.5]} 5. Bg2 {[%clk 0:02:59.7]}
5... c6 {[%clk 0:02:57]} 6. Bf4 {[%clk 0:02:57.7]} 6... Qb6 {[%clk 0:02:54.7]}
7. Qd2 {[%clk 0:02:55.4]} 7... Qxb2 {[%clk 0:02:53.3]} 8. Rb1 {[%clk 0:02:55.7]}
8... Qa3 {[%clk 0:02:53.6]} 9. e4 {[%clk 0:02:52]} 9... h5 {[%clk 0:02:34]} 10.
e5 {[%clk 0:02:43.8]} 10... dxe5 {[%clk 0:02:29.7]} 11. dxe5 {[%clk 0:02:44.7]}
11... Nfd7 {[%clk 0:02:28.9]} 12. Rb3 {[%clk 0:02:38.8]} 12... Qa5 {[%clk
0:02:18.7]} 13. e6 {[%clk 0:02:39]} 13... Ne5 {[%clk 0:02:04]} 14. exf7+ {[%clk
0:02:18.6]} 14... Kxf7 {[%clk 0:02:01.4]} 15. Nge2 {[%clk 0:02:15.6]} 15... hxg4
{[%clk 0:01:58.2]} 16. Qe3 {[%clk 0:02:06.6]} 16... Nbd7 {[%clk 0:01:31.5]} 17.
Kf1 {[%clk 0:02:02.2]} 17... Bf6 {[%clk 0:01:15.4]} 18. Ne4 {[%clk 0:01:56]}
18... Qxa2 {[%clk 0:01:06.2]} 19. Ng5+ {[%clk 0:01:43]} 19... Kg7 {[%clk
0:01:02]} 20. hxg4 {[%clk 0:01:35.9]} 20... Rxh1+ {[%clk 0:01:00]} 21. Bxh1
{[%clk 0:01:36.8]} 21... Qxc2 {[%clk 0:00:53.6]} 22. Be4 {[%clk 0:01:04.2]}
22... Qd1+ {[%clk 0:00:50.2]} 23. Kg2 {[%clk 0:01:04.8]} 23... Nxg4 {[%clk
0:00:49.5]} 24. Qh3 {[%clk 0:00:55.8]} 24... Bxg5 {[%clk 0:00:41]} 25. Qxg4
{[%clk 0:00:55.6]} 25... Bxf4 {[%clk 0:00:38.2]} 26. Qxg6+ {[%clk 0:00:51.7]}
26... Kf8 {[%clk 0:00:37.6]} 27. Rh3 {[%clk 0:00:43.6]} 27... e6 {[%clk
0:00:20.1]} 28. Nxf4 {[%clk 0:00:36.7]} 28... Ne5 {[%clk 0:00:15.5]} 29. Qf6+
{[%clk 0:00:33.9]} 29... Ke8 {[%clk 0:00:11.1]} 30. Rh8+ {[%clk 0:00:34.8]}
30... Kd7 {[%clk 0:00:11.3]} 31. Qd8# {[%clk 0:00:34.9]} 1-0